bitfinex/quotes_ETHUSD_20250425
["timestamp","ask_amount","ask_price","bid_price","bid_amount"]
[1745542672686,5.637932,1773.7,1773.6,1.0365588]
[1745542672887,5.637932,1773.7,1773.6,0.2496588]
[1745542673186,5.6385678,1773.5,1773.4,3.0]
[1745542673886,5.6385678,1773.5,1772.9,4.746]
[1745542673887,3.43409645,1773.5,1772.9,4.746]
[1745542674086,5.64015792,1773.0,1772.9,4.746]
[1745542674932,0.42761247,1773.2,1772.8,5.5549]
[1745542675224,5.63870166,1773.5,1773.1,3.8089]
[1745542675522,5.63849521,1773.6,1773.3,3.0]
[1745542676088,5.63868891,1773.5,1773.3,3.0]
[1745542676293,5.63868891,1773.5,1773.3,0.7746]
[1745542676943,5.63868891,1773.5,1773.1,0.8089]
[1745542676944,5.63888575,1773.4,1773.1,0.8089]
[1745542677299,5.63935617,1773.3,1773.1,0.8089]
[1745542678015,5.63899183,1773.4,1773.1,0.8089]
[1745542678228,11.27812939,1773.4,1773.1,0.8089]
[1745542678542,11.27814444,1773.4,1773.1,1.92839386]
[1745542678836,5.63899183,1773.4,1773.1,1.92839386]
[1745542679201,0.7882,1773.5,1772.9,0.65863013]
[1745542679395,5.63942032,1773.3,1772.9,10.48945024]
[1745542679630,11.27888782,1773.3,1772.9,10.48945024]
[1745542679837,5.63952849,1773.2,1772.9,7.746]
[1745542680642,5.63999052,1773.1,1772.9,7.746]
[1745542681343,5.63999052,1773.1,1772.9,4.746]
[1745542681527,5.63969857,1773.2,1772.8,8.37827419]
[1745542681730,5.63969857,1773.2,1772.8,10.08019479]
[1745542682109,5.63969857,1773.2,1772.8,10.08000757]
[1745542682346,5.63969857,1773.2,1772.8,20.4666277]
[1745542682648,5.63936953,1773.3,1772.9,5.64028002]
[1745542682818,5.63936953,1773.3,1773.0,0.564028]
[1745542683144,5.63936953,1773.3,1773.0,6.2041776]
[1745542683317,5.63907361,1773.4,1773.1,0.7923]
[1745542683731,6.42692358,1773.5,1773.1,6.43201122]
[1745542683935,5.63872358,1773.5,1773.2,2.16941336]
[1745542684115,5.63842964,1773.6,1773.2,2.16941336]
[1745542684320,11.27699,1773.6,1773.2,12.55478308]
[1745542684557,11.27691506,1773.6,1773.2,12.55478308]
[1745542684861,5.63859217,1773.5,1773.2,12.55478308]
[1745542685032,5.63859217,1773.5,1773.3,1.25547831]
[1745542685230,6.39368317,1773.7,1773.3,1.25547831]
[1745542685955,0.8,1773.6,1773.3,1.25547831]
[1745542686151,0.8,1773.6,1773.4,0.21077143]
[1745542686343,6.43840669,1773.6,1773.4,0.21077143]
[1745542687321,5.6385678,1773.5,1773.4,0.21077143]
[1745542687944,5.63840669,1773.6,1773.2,11.02861269]
[1745542688147,5.63840669,1773.6,1773.4,0.21006342]
[1745542688343,5.63840669,1773.6,1773.3,1.31327878]
[1745542688659,5.63840669,1773.6,1773.4,0.21006342]
[1745542691054,11.27692435,1773.6,1773.4,0.21006342]
[1745542691236,5.63840669,1773.6,1773.4,0.21006342]
[1745542693663,12.03187345,1773.7,1773.4,0.21006342]
[1745542694991,11.27627345,1773.7,1773.4,0.97226342]
[1745542695163,5.63773881,1773.8,1773.4,1.74367906]
[1745542695334,5.63773881,1773.8,1773.4,13.02113201]
[1745542695660,5.63765954,1773.8,1773.4,7.38233944]
[1745542696228,5.63765954,1773.8,1773.5,5.6384184]
[1745542696444,5.63765954,1773.8,1773.5,7.14945335]
[1745542697646,5.63765954,1773.8,1773.5,1.51103495]
[1745542697849,11.27551823,1773.8,1773.5,1.51103495]
[1745542698054,5.63798256,1773.7,1773.5,1.51103495]
[1745542704368,5.63798256,1773.7,1773.5,0.20895917]
[1745542705679,5.63824988,1773.6,1773.5,0.20895917]
[1745542705883,5.63798256,1773.7,1773.5,0.20895917]
[1745542706567,5.63824988,1773.6,1773.5,0.20895917]
[1745542706880,11.27620867,1773.7,1773.5,0.20895917]
[1745542707080,5.63798256,1773.7,1773.5,0.20895917]
[1745542710282,5.63779317,1773.8,1773.5,5.8474338]
[1745542710490,5.63779317,1773.8,1773.5,1.32248025]
[1745542710780,5.63812183,1773.7,1773.5,0.20895917]
[1745542711558,5.63824988,1773.6,1773.5,0.20895917]
[1745542712492,12.04498583,1773.7,1773.5,0.20895917]
[1745542712694,0.787,1774.3,1773.7,5.6379181]
[1745542712891,5.63657014,1774.2,1773.8,7.01121662]
[1745542713058,5.63657014,1774.2,1773.8,7.21752119]
[1745542713777,5.63680562,1774.1,1773.8,1.57999638]
[1745542714659,11.27372426,1774.1,1773.8,1.57999638]
[1745542715193,5.63680562,1774.1,1773.8,1.57999638]
[1745542715558,5.63569388,1774.5,1773.9,0.7816]
[1745542715759,0.7839,1774.8,1774.2,5.63623413]
[1745542715964,5.63495867,1774.7,1774.3,6.4027344]
[1745542716373,11.27001288,1774.7,1774.3,6.4027344]
[1745542716573,5.6350819,1774.6,1774.3,6.4027344]
[1745542716898,5.6350819,1774.6,1774.3,0.76687621]
[1745542721077,5.6350819,1774.6,1774.3,6.40287884]
[1745542721287,5.63498525,1774.7,1774.4,0.64028788]
[1745542721618,5.63498525,1774.7,1774.5,0.19799176]
[1745542724211,5.63507269,1774.6,1774.5,0.19799176]
[1745542724602,11.27001867,1774.7,1774.5,0.19799176]
[1745542724913,5.63498525,1774.7,1774.5,0.19799176]
[1745542725280,5.63507269,1774.6,1774.5,0.19799176]
[1745542735721,6.44067269,1774.6,1774.5,0.19799176]
[1745542735923,5.63570784,1774.4,1774.3,4.743]
[1745542736130,5.63570784,1774.4,1774.3,5.29771]
[1745542736987,5.6354346,1774.5,1774.3,5.29771]
[1745542737520,11.27110326,1774.5,1774.3,5.29771]
[1745542737922,5.63570784,1774.4,1774.3,5.29771]
[1745542738622,5.63570784,1774.4,1774.3,4.743]
[1745542740394,5.63653739,1774.2,1774.0,5.5539]
[1745542740614,5.63653739,1774.2,1774.0,8.5539]
[1745542741206,11.27311067,1774.2,1774.0,8.5539]
[1745542741413,5.63653739,1774.2,1774.0,8.5539]
[1745542743204,6.4623301,1774.6,1774.0,15.60980832]
[1745542743404,5.63597718,1774.4,1774.0,15.60980832]
[1745542743598,5.63603422,1774.3,1774.0,15.60980832]
[1745542743907,11.27195004,1774.4,1774.0,15.60980832]
[1745542744225,5.63548217,1774.5,1774.2,0.7773]
[1745542744395,5.63570865,1774.4,1774.2,0.7773]
[1745542745314,5.63602547,1774.3,1774.2,0.7773]
[1745542745526,5.63570865,1774.4,1774.2,0.7773]
[1745542745892,5.63570865,1774.4,1774.3,0.18072453]
[1745542747022,5.63570865,1774.4,1774.1,0.7654]
[1745542747214,5.63605575,1774.3,1774.1,0.7654]
[1745542747429,5.63605575,1774.3,1774.2,0.18107828]
[1745542747928,5.63605575,1774.3,1774.0,9.17211101]
[1745542748222,5.63605575,1774.3,1774.2,0.18107828]
[1745542748419,5.63605575,1774.3,1774.1,0.18143207]
[1745542748626,5.63605575,1774.3,1774.2,0.18107828]
[1745542748823,5.63605575,1774.3,1774.0,14.80907316]
[1745542749228,5.63605575,1774.3,1774.1,0.18143207]
[1745542749525,6.40270865,1774.4,1774.1,0.18143207]
[1745542749731,5.63515751,1774.6,1774.3,6.39833155]
[1745542749930,5.63541562,1774.5,1774.3,0.76241856]
[1745542750136,5.63541562,1774.5,1774.4,0.18037083]
[1745542750432,5.63515751,1774.6,1774.2,6.41731154]
[1745542750627,5.63540618,1774.5,1774.3,0.64173115]
[1745542750930,5.63540618,1774.5,1774.3,0.82254385]
[1745542751612,11.27057259,1774.6,1774.3,0.82254385]
[1745542751813,5.63526367,1774.6,1774.3,0.82254385]
[1745542752806,11.2706043,1774.6,1774.3,0.82254385]
[1745542753211,5.63526367,1774.6,1774.3,0.82254385]
[1745542753629,5.63526367,1774.6,1774.4,0.7605]
[1745542753827,5.63526367,1774.6,1774.4,1.48239789]
[1745542754032,5.63526367,1774.6,1774.5,0.18010533]
[1745542757102,5.63526367,1774.6,1774.3,0.7963]
[1745542757297,5.63526367,1774.6,1774.5,0.18010533]
[1745542757602,5.63539025,1774.5,1774.3,0.7963]
[1745542757937,5.63539025,1774.5,1774.3,1.17593]
[1745542758538,5.63539025,1774.5,1774.3,0.7963]
[1745542759347,11.27101297,1774.5,1774.3,0.7963]
[1745542759551,5.63539025,1774.5,1774.3,0.7963]
[1745542760855,5.63539025,1774.5,1774.4,0.18015033]
[1745542761058,5.63539025,1774.5,1774.3,0.7963]
[1745542761349,5.63539025,1774.5,1774.4,0.18015033]
[1745542761739,5.63539025,1774.5,1774.3,0.7963]
[1745542761941,5.63539025,1774.5,1774.4,0.18015033]
[1745542762123,5.63522403,1774.6,1774.3,0.7963]
[1745542762328,5.63522403,1774.6,1774.4,0.18015033]
[1745542762513,11.27059107,1774.6,1774.3,2.21486286]
[1745542762717,5.63522403,1774.6,1774.5,0.17979667]
[1745542763052,5.63539025,1774.5,1774.3,0.7963]
[1745542763647,5.63522403,1774.6,1774.3,0.7963]
[1745542763852,11.27053362,1774.6,1774.3,0.7963]
[1745542764150,5.63522403,1774.6,1774.3,0.7963]
[1745542764450,5.63541549,1774.5,1774.2,7.753]
[1745542764628,5.63572403,1774.4,1774.2,7.753]
[1745542765030,5.63572403,1774.4,1774.2,7.743]
[1745542766244,11.2717415,1774.4,1774.2,7.743]
[1745542766451,5.63572403,1774.4,1774.2,7.743]
[1745542766762,11.27172056,1774.4,1774.2,7.743]
[1745542766963,5.63572403,1774.4,1774.2,7.743]
[1745542767363,5.63555178,1774.5,1774.2,7.743]
[1745542767562,5.63572691,1774.4,1774.2,7.743]
[1745542768361,11.27174296,1774.4,1774.2,7.743]
[1745542768566,5.63572691,1774.4,1774.2,7.743]
[1745542768873,5.63602547,1774.3,1774.2,4.743]
[1745542769033,5.63572691,1774.4,1774.2,4.743]
[1745542771136,5.63557575,1774.5,1774.2,4.743]
[1745542773437,5.63582319,1774.4,1774.2,4.743]
[1745542775047,5.63557575,1774.5,1774.2,10.37929008]
[1745542775888,5.63557575,1774.5,1774.3,0.18019542]
[1745542781288,5.63487653,1774.7,1774.3,6.87208511]
[1745542781487,5.63516174,1774.6,1774.3,7.64478511]
[1745542783987,5.63516174,1774.6,1774.3,2.00884397]
[1745542784149,5.63547369,1774.5,1774.3,2.00884397]
[1745542786585,5.63570784,1774.4,1774.3,0.18019542]
[1745542791086,11.27109021,1774.5,1774.3,0.18019542]
[1745542791391,5.63547369,1774.5,1774.3,0.18019542]
[1745542791759,11.27114267,1774.5,1774.3,0.18019542]
[1745542792086,5.63547369,1774.5,1774.3,0.18019542]
[1745542792292,5.63547369,1774.5,1774.3,0.98719542]
[1745542792611,5.63547369,1774.5,1774.3,2.12384597]
[1745542792792,11.27113493,1774.5,1774.3,2.12384597]
[1745542794185,5.63547369,1774.5,1774.3,2.12384597]
[1745542794569,11.27109285,1774.5,1774.3,2.12384597]
[1745542796812,5.63570784,1774.4,1774.3,2.12384597]
[1745542797286,5.63570784,1774.4,1774.3,1.31684597]
[1745542800182,5.63570784,1774.4,1774.3,0.18019542]
[1745542802712,5.63525144,1774.6,1774.3,0.94179542]
[1745542802886,6.44395647,1774.9,1774.5,7.15916102]
[1745542803086,5.63507269,1774.6,1774.4,0.7721]
[1745542803510,5.63507269,1774.6,1774.3,0.18019542]
[1745542803511,5.63570784,1774.4,1774.3,0.18019542]
[1745542803990,0.7585,1774.8,1774.3,0.18019542]
[1745542804313,6.39410882,1774.5,1774.3,0.18019542]
[1745542804619,5.63544293,1774.5,1774.3,0.18019542]
[1745542805118,5.63491212,1774.7,1774.4,0.7768]
[1745542805316,5.63491212,1774.7,1774.4,2.30066638]
[1745542805512,5.63491212,1774.7,1774.4,3.41233615]
[1745542805919,5.63459261,1774.8,1774.4,9.0480043]
[1745542806217,5.63406132,1775.0,1774.6,2.31636638]
[1745542806405,5.63406132,1775.0,1774.6,12.69428452]
[1745542806607,10.37593358,1775.3,1774.6,12.69428452]
[1745542806608,5.63334845,1775.2,1774.8,7.95060624]
[1745542806781,5.63334845,1775.2,1774.8,2.31636638]
[1745542806981,5.63358685,1775.1,1774.8,2.31636638]
[1745542807191,5.63358685,1775.1,1774.8,3.28021272]
[1745542807394,5.63334845,1775.2,1774.8,1.75634634]
[1745542807580,5.63352383,1775.1,1774.8,1.75634634]
[1745542808831,5.63352383,1775.1,1774.8,7.39073705]
[1745542809128,5.63334845,1775.2,1774.8,7.39073705]
[1745542809322,5.63334845,1775.2,1774.9,0.73907371]
[1745542809688,5.63334845,1775.2,1774.8,7.39060265]
[1745542810121,5.63334845,1775.2,1774.8,7.39059718]
[1745542810423,5.63335744,1775.2,1774.8,1.75634634]
[1745542810625,5.63359822,1775.1,1774.8,1.75634634]
[1745542811084,5.63359822,1775.1,1774.8,7.39074746]
[1745542811431,5.63359822,1775.1,1774.9,0.73907475]
[1745542811638,5.63359822,1775.1,1774.8,1.75634634]
[1745542812706,5.6333467,1775.2,1774.8,1.75634634]
[1745542812906,5.63365116,1775.1,1774.8,1.75634634]
[1745542814126,5.63350315,1775.1,1774.8,7.39061152]
[1745542814491,5.6333467,1775.2,1774.8,7.39061152]
[1745542814729,5.6333467,1775.2,1774.9,0.73906115]
[1745542814903,5.63362018,1775.1,1774.9,0.73906115]
[1745542815207,5.63362018,1775.1,1774.8,0.7925]
[1745542816045,5.6333467,1775.2,1774.8,0.7925]
[1745542816329,5.6333467,1775.2,1774.8,12.06088334]
[1745542816527,5.63307435,1775.3,1775.0,0.8232]
[1745542816923,5.63331678,1775.2,1775.0,0.8232]
[1745542817807,5.63331678,1775.2,1775.1,0.17155809]
[1745542818004,5.63307435,1775.3,1775.1,0.17155809]
[1745542818209,5.63316809,1775.2,1775.1,0.17155809]
[1745542820212,7.53589233,1775.2,1775.1,0.17155809]
[1745542820411,5.63380281,1775.0,1774.9,0.03364305]
[1745542820710,5.63380281,1775.0,1774.9,0.07189914]
[1745542820907,5.91051964,1776.1,1774.9,0.07189914]
[1745542820908,0.8223,1775.8,1775.0,0.7681]
[1745542821120,5.63269611,1775.4,1775.1,4.742]
[1745542821433,5.63316809,1775.2,1775.1,4.742]
[1745542821634,5.63380281,1775.0,1774.9,0.07189914]
[1745542821835,7.5384548,1775.0,1774.9,0.07189914]
[1745542822398,5.63380281,1775.0,1774.9,0.07189914]
[1745542823410,6.45040281,1775.0,1774.9,0.07189914]
[1745542824301,11.19140281,1775.0,1774.9,0.07189914]
[1745542824508,5.63602547,1774.3,1774.2,4.741]
[1745542824722,5.63602547,1774.3,1774.1,0.7992]
[1745542824936,5.63602547,1774.3,1774.1,0.42303044]
[1745542825142,11.2719004,1774.4,1774.1,0.42303044]
[1745542825932,5.63588463,1774.4,1774.1,0.42303044]
[1745542826531,5.63615872,1774.3,1774.1,0.42303044]
[1745542826847,5.63588463,1774.4,1774.1,6.05963079]
[1745542827050,6.45095357,1774.6,1774.2,6.24227634]
[1745542827211,5.63539463,1774.5,1774.2,6.99777634]
[1745542827411,5.63539463,1774.5,1774.2,1.36146308]
[1745542827838,5.63495604,1774.7,1774.3,5.63592376]
[1745542828117,5.63489761,1774.7,1774.4,5.78657817]
[1745542829126,6.40458546,1774.8,1774.4,5.78657817]
[1745542829447,11.26929533,1774.8,1774.4,5.78657817]
[1745542829651,5.63458546,1774.8,1774.4,0.15087558]
[1745542829953,5.63517136,1774.6,1774.3,3.69973868]
[1745542830243,5.63517136,1774.6,1774.4,0.15181137]
[1745542830652,5.63540642,1774.5,1774.3,3.0]
[1745542831011,5.63540642,1774.5,1774.2,0.7555]
[1745542831221,5.63562652,1774.5,1774.1,3.42303044]
[1745542831524,5.63584376,1774.4,1774.1,9.05968641]
[1745542831728,5.63562652,1774.5,1774.1,9.05968641]
[1745542832724,5.63562652,1774.5,1774.2,5.63628552]
[1745542832922,5.63521401,1774.6,1774.2,5.63628552]
[1745542832923,11.27057462,1774.6,1774.2,5.63628552]
[1745542833128,5.63521401,1774.6,1774.2,5.63628552]
[1745542833552,5.63573802,1774.4,1774.1,9.0594812]
[1745542833850,5.63561097,1774.5,1774.1,9.0594812]
[1745542834561,11.27127786,1774.5,1774.1,9.0594812]
[1745542834933,5.63561097,1774.5,1774.1,9.0594812]
[1745542835634,5.63561097,1774.5,1774.1,14.69594381]
[1745542835833,12.03396852,1774.7,1774.2,7.1057123]
[1745542836057,6.3989639,1774.7,1774.3,6.4680666]
[1745542836853,6.3989639,1774.7,1774.3,0.8322]
[1745542837055,5.63524037,1774.6,1774.3,6.46813402]
[1745542838776,5.63524037,1774.6,1774.3,0.8322]
[1745542838936,5.63524037,1774.6,1774.3,6.46813579]
[1745542839871,5.63553147,1774.5,1774.3,0.8322]
[1745542841139,5.63549476,1774.5,1774.3,0.8322]
[1745542842338,5.6352486,1774.6,1774.3,0.8322]
[1745542842576,5.63550453,1774.5,1774.3,0.8322]
[1745542842951,5.6352486,1774.6,1774.3,0.8322]
[1745542843137,5.6352486,1774.6,1774.4,0.15383449]
[1745542843338,5.63539025,1774.5,1774.3,0.8322]
[1745542843538,5.6352486,1774.6,1774.4,0.15383449]
[1745542843866,5.6352486,1774.6,1774.3,0.8322]
[1745542844072,5.6352486,1774.6,1774.5,0.1534807]
[1745542844272,11.27058937,1774.6,1774.4,0.15383449]
[1745542844569,5.6352486,1774.6,1774.5,0.1534807]
[1745542844765,12.47403512,1774.6,1774.3,0.8322]
[1745542844955,11.27061006,1774.6,1774.4,0.15383449]
[1745542845194,5.63539025,1774.5,1774.3,0.8322]
[1745542846274,11.27053076,1774.6,1774.3,0.8322]
[1745542846468,5.63551182,1774.5,1774.3,0.8322]
[1745542848187,5.62536812,1774.5,1774.3,0.8322]
[1745542848391,5.63570784,1774.4,1774.3,0.8322]
[1745542848542,5.62536812,1774.5,1774.3,0.8322]
[1745542848846,5.63570784,1774.4,1774.1,9.88066728]
[1745542849041,6.39887678,1774.7,1773.7,0.7695]
[1745542849042,5.63697857,1774.0,1773.7,0.7695]
[1745542849245,11.27420674,1774.0,1773.7,0.7695]
[1745542849467,5.63761416,1773.8,1773.7,0.7695]
[1745542849783,5.63761416,1773.8,1773.6,3.0]
[1745542849985,5.637932,1773.7,1773.6,3.0]
[1745542850485,5.63761416,1773.8,1773.6,3.0]
[1745542850844,11.27500037,1773.9,1773.6,3.0]
[1745542851044,5.63744958,1773.9,1773.6,9.49228803]
[1745542851494,5.63744958,1773.9,1773.6,3.85405]
[1745542852475,5.63708089,1774.0,1773.6,9.49201697]
[1745542852719,5.63708089,1774.0,1773.7,0.385405]
[1745542853377,11.27430001,1774.0,1773.7,0.385405]
[1745542853575,5.63708089,1774.0,1773.7,0.385405]
[1745542853783,5.63752017,1773.9,1773.7,0.385405]
[1745542855076,11.27505587,1773.9,1773.7,0.385405]
[1745542855582,5.63761416,1773.8,1773.6,3.85405]
[1745542855758,5.63761416,1773.8,1773.6,3.0]
[1745542858391,5.63743639,1773.9,1773.7,0.14462127]
[1745542859679,5.63761416,1773.8,1773.7,0.14462127]
[1745542862696,5.63824988,1773.6,1773.5,5.5405]
[1745542863069,5.63824988,1773.6,1773.4,3.7656]
[1745542863473,5.6385678,1773.5,1773.4,3.7656]
[1745542864020,5.63824988,1773.6,1773.4,3.7656]
[1745542864878,5.6385678,1773.5,1773.4,3.7656]
[1745542865268,5.63900033,1773.4,1773.3,0.8211]
[1745542865465,5.63900033,1773.4,1773.2,5.5711]
[1745542865799,5.63920374,1773.3,1773.2,5.5711]
[1745542867007,5.63920374,1773.3,1773.2,4.75]
[1745542867208,5.63954898,1773.2,1773.0,4.20274397]
[1745542867407,5.63954898,1773.2,1773.0,4.6794744]
[1745542867578,5.63954898,1773.2,1773.0,3.7841]
[1745542868086,11.27931642,1773.2,1773.0,3.7841]
[1745542868285,5.63954898,1773.2,1773.0,3.7841]
[1745542868901,5.63938074,1773.3,1773.0,9.42425492]
[1745542869088,5.63908332,1773.4,1773.1,0.37841]
[1745542869511,5.63929586,1773.3,1773.1,0.37841]
[1745542872533,5.63876679,1773.5,1773.2,0.8047]
[1745542872734,5.63876679,1773.5,1773.2,1.56311334]
[1745542873328,5.63876679,1773.5,1773.3,0.13281706]
[1745542874290,5.63837761,1773.6,1773.3,0.13281706]
[1745542874695,5.63806907,1773.7,1773.4,5.63886805]
[1745542874908,5.63749218,1773.9,1773.5,10.88957711]
[1745542877533,5.63766134,1773.8,1773.5,4.48976301]
[1745542877837,5.63779088,1773.8,1773.5,3.1323762]
[1745542879734,5.63779088,1773.8,1773.5,8.77083186]
[1745542879941,6.3918504,1774.0,1773.6,5.63823433]
[1745542880254,5.6371504,1774.0,1773.7,1.47975888]
[1745542880434,5.63731701,1773.9,1773.7,1.47975888]
[1745542880835,5.63731701,1773.9,1773.7,0.91593545]
[1745542882774,5.63731701,1773.9,1773.7,0.13193545]
[1745542883048,5.63731701,1773.9,1773.5,9.447146]
[1745542883250,5.63731701,1773.9,1773.8,0.13171296]
[1745542883618,5.63731701,1773.9,1773.6,5.63824606]
[1745542883818,5.63710662,1774.0,1773.7,0.13206703]
[1745542884059,11.27435117,1774.0,1773.7,0.13206703]
[1745542884569,5.63710662,1774.0,1773.7,0.13206703]
[1745542884861,5.63612439,1774.3,1773.8,0.8088]
[1745542884862,5.63654574,1774.2,1773.8,0.8088]
[1745542885158,5.63654574,1774.2,1773.9,0.13132549]
[1745542885362,11.27313519,1774.2,1773.9,0.13132549]
[1745542885524,5.63654574,1774.2,1773.8,6.44620203]
[1745542885725,5.63666084,1774.1,1774.0,0.1309715]
[1745542885931,5.63666084,1774.1,1774.0,0.12996894]
[1745542886337,5.63620303,1774.3,1773.9,5.63727495]
[1745542886623,5.63620303,1774.3,1774.0,0.69369643]
[1745542886820,5.6358514,1774.4,1774.1,0.8239]
[1745542887020,6.46666837,1774.7,1774.3,5.63601522]
[1745542887267,6.46666837,1774.7,1774.4,0.8239]
[1745542887561,6.46666837,1774.7,1774.4,0.95098346]
[1745542887750,5.63518612,1774.6,1774.4,0.95098346]
[1745542890168,5.63524987,1774.6,1774.4,0.95098346]
[1745542892472,6.46666837,1774.7,1774.4,0.95098346]
[1745542892672,12.10165881,1774.7,1774.4,0.95098346]
[1745542893173,5.63511922,1774.6,1774.4,0.95098346]
[1745542896134,5.63486837,1774.7,1774.4,0.95098346]
[1745542896577,5.63509172,1774.6,1774.4,0.95098346]
[1745542897290,5.63509172,1774.6,1774.4,0.12708346]
[1745542897798,5.63509172,1774.6,1774.2,12.09320755]
[1745542897799,5.63509172,1774.6,1774.5,0.12218415]
[1745542897967,6.45909172,1774.6,1774.5,0.12218415]
[1745542898142,6.45909172,1774.6,1774.2,6.45702117]
[1745542898143,5.6354603,1774.5,1774.2,6.45702117]
[1745542898342,5.6354603,1774.5,1774.2,8.00942041]
[1745542898555,6.45909172,1774.6,1774.2,8.00942041]
[1745542898767,6.45909172,1774.6,1774.2,13.64555078]
[1745542898977,6.45909172,1774.6,1774.2,8.00942041]
[1745542899344,6.45909172,1774.6,1774.2,13.64554324]
[1745542899546,5.63509172,1774.6,1774.3,1.36455432]
[1745542899777,5.63509172,1774.6,1774.3,7.00056729]
[1745542900950,5.63454951,1774.8,1774.4,5.63568839]
[1745542901155,5.63477044,1774.7,1774.4,6.4339999]
[1745542901370,5.63454951,1774.8,1774.4,7.64098528]
[1745542902176,0.7684,1774.9,1774.6,5.63480322]
[1745542902349,11.26801699,1775.0,1774.7,0.7694]
[1745542902554,5.63425124,1774.9,1774.7,0.7694]
[1745542903085,5.63425124,1774.9,1774.8,0.11670798]
[1745542903479,5.63398353,1775.0,1774.8,0.11670798]
[1745542904473,5.63412023,1774.9,1774.8,0.11670798]
[1745542904961,7.54243061,1774.9,1774.8,0.11670798]
[1745542905165,5.6348826,1774.7,1774.5,3.0]
[1745542905362,5.6348826,1774.7,1774.4,7.743]
[1745542905666,5.63443768,1774.8,1774.4,4.743]
[1745542905852,5.63443768,1774.8,1774.3,0.7502]
[1745542905853,5.63521324,1774.6,1774.3,9.38613753]
[1745542906579,5.63587259,1774.4,1774.1,3.7505]
[1745542907084,5.63587259,1774.4,1774.1,0.7505]
[1745542907245,5.63587259,1774.4,1774.1,4.38922704]
[1745542908083,6.39726472,1774.5,1774.1,10.02576101]
[1745542908281,5.63556472,1774.5,1774.2,5.6362068]
[1745542908480,5.63556472,1774.5,1774.1,10.02567643]
[1745542908776,5.63556472,1774.5,1774.1,15.66212582]
[1745542908979,5.63556472,1774.5,1774.2,1.56621258]
[1745542910486,11.27121873,1774.5,1774.1,9.38694939]
[1745542911454,11.27122046,1774.5,1774.1,9.38694939]
[1745542914855,5.63556472,1774.5,1774.1,9.38694939]
[1745542915185,11.27119346,1774.5,1774.1,9.38694939]
[1745542915388,5.63517909,1774.6,1774.2,5.63622391]
[1745542915593,5.63551367,1774.5,1774.1,9.38696285]
[1745542915885,5.63551367,1774.5,1774.2,0.93869629]
[1745542916099,5.63519496,1774.6,1774.2,0.93869629]
[1745542916259,5.63550926,1774.5,1774.2,0.93869629]
[1745542916463,5.63550926,1774.5,1774.2,6.57500064]
[1745542917596,5.63519496,1774.6,1774.2,6.57500064]
[1745542917797,11.27050022,1774.6,1774.3,0.65750006]
[1745542918092,5.63519496,1774.6,1774.4,0.11004087]
[1745542918281,5.63519496,1774.6,1774.2,12.21094659]
[1745542918482,5.63519496,1774.6,1774.5,0.10968731]
[1745542918671,5.63519496,1774.6,1774.2,12.21094659]
[1745542918870,5.63541738,1774.5,1774.3,1.22109466]
[1745542919095,5.63541738,1774.5,1774.2,5.63611941]
[1745542919266,5.63519496,1774.6,1774.2,11.27224435]
[1745542919605,5.63519496,1774.6,1774.3,5.63591897]
[1745542919974,5.63519496,1774.6,1774.2,11.27226283]
[1745542920325,5.63519496,1774.6,1774.3,1.12722628]
[1745542920865,11.27052574,1774.6,1774.2,5.63611941]
[1745542921064,5.63519496,1774.6,1774.2,11.27232371]
[1745542922197,6.42590401,1774.7,1774.3,6.39778416]
[1745542922399,5.63520489,1774.6,1774.3,7.60117836]
[1745542922905,6.42590401,1774.7,1774.3,13.23699466]
[1745542923061,6.42590401,1774.7,1774.4,5.63566234]
[1745542923376,6.42591179,1774.7,1774.3,1.9651942]
[1745542923700,5.63519205,1774.6,1774.3,1.9651942]
[1745542924203,5.63541983,1774.5,1774.3,1.9651942]
[1745542924402,5.63603015,1774.3,1774.1,5.546]
[1745542924598,5.63680803,1774.1,1773.7,6.44074289]
[1745542924799,5.63680803,1774.1,1773.7,12.54244302]
[1745542925010,5.63680803,1774.1,1773.8,5.6375842]
[1745542926118,6.42558683,1774.2,1773.9,5.63726677]
[1745542926407,5.63648683,1774.2,1773.9,5.63726677]
[1745542927849,5.63648683,1774.2,1773.8,5.6375842]
[1745542927984,5.63667733,1774.1,1773.8,7.83174063]
[1745542928814,5.63699105,1774.0,1773.8,5.19415643]
[1745542929108,6.38787733,1774.1,1773.8,5.19415643]
[1745542930085,6.38787733,1774.1,1773.8,10.831763]
[1745542930507,0.7512,1774.1,1773.8,10.83162466]
[1745542930714,6.38797334,1774.1,1773.8,10.83162466]
[1745542931089,0.7512,1774.1,1773.8,10.83162466]
[1745542931285,6.39196403,1774.4,1774.0,6.42467904]
[1745542931491,6.39177773,1774.5,1774.1,5.63639067]
[1745542931695,6.39177773,1774.5,1774.2,5.63631757]
[1745542932021,6.39177773,1774.5,1774.1,5.63639067]
[1745542932225,6.39177773,1774.5,1774.1,6.27880974]
[1745542932992,6.39177773,1774.5,1774.1,11.91524726]
[1745542933192,6.39177773,1774.5,1774.2,5.63622314]
[1745542934134,0.7562,1774.5,1774.2,5.63622314]
[1745542934440,0.7562,1774.5,1774.2,5.63615271]
[1745542934604,0.7562,1774.5,1774.2,6.82765638]
[1745542934799,6.39168481,1774.5,1774.2,6.82765638]
[1745542935200,5.63526305,1774.6,1774.3,5.63590272]
[1745542935512,11.27058113,1774.6,1774.2,7.58195638]
[1745542935711,5.63526305,1774.6,1774.2,7.58195638]
[1745542936238,5.63526305,1774.6,1774.3,6.39417081]
[1745542936441,5.63526305,1774.6,1774.3,0.75819564]
[1745542936741,5.63526305,1774.6,1774.2,7.5819447]
[1745542937435,5.63563431,1774.5,1774.2,1.94580367]
[1745542937602,6.38873431,1774.5,1774.1,10.37946388]
[1745542937803,6.38873431,1774.5,1774.1,10.3794492]
[1745542938124,6.38873431,1774.5,1774.1,16.01588816]
[1745542938441,5.63572559,1774.4,1774.1,4.743]
[1745542938630,5.63572559,1774.4,1774.1,10.37955192]
[1745542938826,6.38868834,1774.5,1774.1,12.05660073]
[1745542939547,6.38868834,1774.5,1774.1,12.05648237]
[1745542939713,6.38868834,1774.5,1774.2,5.6362566]
[1745542939912,5.63579768,1774.4,1774.1,12.05648237]
[1745542940123,12.02434536,1774.5,1774.1,12.05648237]
[1745542940344,6.38868834,1774.5,1774.1,12.05648237]
[1745542940549,6.38868834,1774.5,1774.2,5.6362468]
[1745542940721,12.02431062,1774.5,1774.1,12.05648237]
[1745542941040,6.38868834,1774.5,1774.1,12.05648237]
[1745542941444,12.02430667,1774.5,1774.1,12.05648237]
[1745542941647,6.38868834,1774.5,1774.1,12.05648237]
[1745542942108,6.38868834,1774.5,1774.2,5.63625661]
[1745542942557,6.38868834,1774.5,1774.1,4.743]
[1745542942558,5.63603632,1774.3,1774.1,4.743]
[1745542942873,5.63667294,1774.1,1773.8,11.16202726]
[1745542943532,6.38826715,1774.2,1773.8,11.16189333]
[1745542943732,6.38826715,1774.2,1773.9,5.63727301]